[Event "*** Titled Tuesday Blitz"]
[Site "Chess.com"]
[Date "2021.04.06"]
[Round "10"]
[White "Sueetin"]
[Black "dosto07"]
[Result "1-0"]
[WhiteElo "2397"]
[BlackElo "2260"]
[TimeControl "180+1"]
[EndTime "11:56:44 PDT"]
[Termination "Sueetin won by resignation"]

1. d4 {[%clk 0:03:00.9]} 1... d5 {[%clk 0:02:58.5]} 2. c4 {[%clk 0:03:01.1]}
2... dxc4 {[%clk 0:02:57.2]} 3. e3 {[%clk 0:03:01.1]} 3... Nf6 {[%clk
0:02:57.1]} 4. Bxc4 {[%clk 0:03:01.3]} 4... e6 {[%clk 0:02:57.5]} 5. Nf3 {[%clk
0:03:01.5]} 5... c5 {[%clk 0:02:58.2]} 6. O-O {[%clk 0:03:01.9]} 6... a6 {[%clk
0:02:58]} 7. dxc5 {[%clk 0:03:02.1]} 7... Bxc5 {[%clk 0:02:55.4]} 8. Qxd8+
{[%clk 0:03:01.9]} 8... Kxd8 {[%clk 0:02:55.9]} 9. Ne5 {[%clk 0:03:02.2]} 9...
Ke7 {[%clk 0:02:56]} 10. Be2 {[%clk 0:03:02.6]} 10... Nbd7 {[%clk 0:02:54.4]}
11. Nd3 {[%clk 0:02:56.5]} 11... Bd6 {[%clk 0:02:51.5]} 12. Nd2 {[%clk
0:02:53.4]} 12... b5 {[%clk 0:02:45.1]} 13. a4 {[%clk 0:02:51.4]} 13... Bb7
{[%clk 0:02:37.9]} 14. Nb3 {[%clk 0:02:44.7]} 14... Bd5 {[%clk 0:02:20.9]} 15.
Nd4 {[%clk 0:02:37.8]} 15... b4 {[%clk 0:02:04.4]} 16. f3 {[%clk 0:02:29]} 16...
Rhc8 {[%clk 0:01:57.8]} 17. e4 {[%clk 0:02:26.1]} 17... Bc4 {[%clk 0:01:54.6]}
18. Be3 {[%clk 0:02:18.3]} 18... Ne5 {[%clk 0:01:48.9]} 19. Rfd1 {[%clk
0:01:53.1]} 19... Nfd7 {[%clk 0:01:36]} 20. Kf2 {[%clk 0:00:46.3]} 20... Nxd3+
{[%clk 0:01:32.6]} 21. Bxd3 {[%clk 0:00:47.2]} 21... Bxd3 {[%clk 0:01:32.6]} 22.
Rxd3 {[%clk 0:00:47.1]} 22... Ne5 {[%clk 0:01:25.4]} 23. Rdd1 {[%clk 0:00:35.3]}
23... Nc4 {[%clk 0:01:25.1]} 24. Rab1 {[%clk 0:00:30.5]} 24... Bc5 {[%clk
0:00:46.8]} 25. f4 {[%clk 0:00:17.3]} 25... g5 {[%clk 0:00:40.6]} 26. g3 {[%clk
0:00:17]} 26... gxf4 {[%clk 0:00:40.3]} 27. gxf4 {[%clk 0:00:17.9]} 27... Nxe3
{[%clk 0:00:30.7]} 28. Kxe3 {[%clk 0:00:17.9]} 28... Rd8 {[%clk 0:00:25.2]} 29.
e5 {[%clk 0:00:17.7]} 29... Rxd4 {[%clk 0:00:19.5]} 30. Rxd4 {[%clk 0:00:17.8]}
30... Rd8 {[%clk 0:00:19.9]} 31. Rd1 {[%clk 0:00:18.2]} 31... f6 {[%clk
0:00:13.6]} 32. Ke4 {[%clk 0:00:17.9]} 32... Rxd4+ {[%clk 0:00:13.4]} 33. Rxd4
{[%clk 0:00:18.8]} 33... Bxd4 {[%clk 0:00:13.4]} 34. Kxd4 {[%clk 0:00:19.7]}
34... fxe5+ {[%clk 0:00:13.5]} 35. Kxe5 {[%clk 0:00:19]} 35... a5 {[%clk
0:00:12]} 36. b3 {[%clk 0:00:16.7]} 36... Kf7 {[%clk 0:00:11.5]} 37. f5 {[%clk
0:00:13.7]} 37... exf5 {[%clk 0:00:11.1]} 38. Kxf5 {[%clk 0:00:14.6]} 38... Kg7
{[%clk 0:00:10.9]} 39. Kg5 {[%clk 0:00:14.6]} 39... h6+ {[%clk 0:00:10.2]} 40.
Kf5 {[%clk 0:00:12.6]} 40... Kf7 {[%clk 0:00:10.3]} 41. h3 {[%clk 0:00:12.8]}
41... Kg7 {[%clk 0:00:09.5]} 42. h4 {[%clk 0:00:09.7]} 42... Kf7 {[%clk
0:00:09.5]} 43. h5 {[%clk 0:00:10.1]} 43... Kg7 {[%clk 0:00:09.3]} 44. Ke6
{[%clk 0:00:10.2]} 44... Kg8 {[%clk 0:00:07.8]} 45. Kf6 {[%clk 0:00:10.2]} 45...
Kh7 {[%clk 0:00:07.9]} 46. Kf7 {[%clk 0:00:10.7]} 46... Kh8 {[%clk 0:00:07.7]}
47. Kg6 {[%clk 0:00:11.3]} 47... Kg8 {[%clk 0:00:08.2]} 48. Kxh6 {[%clk
0:00:12.2]} 48... Kh8 {[%clk 0:00:08.6]} 49. Kg6 {[%clk 0:00:12.7]} 49... Kg8
{[%clk 0:00:09.5]} 50. Kf6 {[%clk 0:00:13.2]} 50... Kh8 {[%clk 0:00:10.1]} 51.
Ke6 {[%clk 0:00:14.1]} 51... Kh7 {[%clk 0:00:10.8]} 52. Kd6 {[%clk 0:00:15]}
52... Kh6 {[%clk 0:00:11.7]} 53. Kc5 {[%clk 0:00:15.9]} 53... Kxh5 {[%clk
0:00:12.3]} 54. Kb5 {[%clk 0:00:16.8]} 54... Kg5 {[%clk 0:00:12.8]} 55. Kxa5
{[%clk 0:00:17.7]} 55... Kf5 {[%clk 0:00:12]} 56. Kxb4 {[%clk 0:00:18.6]} 1-0

[Event "*** Titled Tuesday Blitz"]
[Site "Chess.com"]
[Date "2021.04.06"]
[Round "10"]
[White "morte-negra"]
[Black "Das_Virus_2020"]
[Result "0-1"]
[WhiteElo "1969"]
[BlackElo "2412"]
[TimeControl "180+1"]
[EndTime "11:56:44 PDT"]
[Termination "Das_Virus_2020 won on time"]

1. e4 {[%clk 0:03:00.9]} 1... e6 {[%clk 0:02:53.8]} 2. d4 {[%clk 0:02:59.2]}
2... d5 {[%clk 0:02:53.8]} 3. e5 {[%clk 0:02:59.7]} 3... c5 {[%clk 0:02:53.4]}
4. c3 {[%clk 0:02:59.7]} 4... Nc6 {[%clk 0:02:53.5]} 5. Nf3 {[%clk 0:02:59.8]}
5... Qb6 {[%clk 0:02:53.6]} 6. a3 {[%clk 0:02:59.7]} 6... c4 {[%clk 0:02:53.6]}
7. Be2 {[%clk 0:02:53.7]} 7... Na5 {[%clk 0:02:53]} 8. Nbd2 {[%clk 0:02:52.2]}
8... Bd7 {[%clk 0:02:52.9]} 9. O-O {[%clk 0:02:51.2]} 9... h6 {[%clk 0:02:52.6]}
10. Rb1 {[%clk 0:02:48.6]} 10... Ne7 {[%clk 0:02:52.1]} 11. b4 {[%clk
0:02:40.1]} 11... cxb3 {[%clk 0:02:51.5]} 12. Nxb3 {[%clk 0:02:36.7]} 12... Nxb3
{[%clk 0:02:31.9]} 13. Qxb3 {[%clk 0:02:34.8]} 13... Qxb3 {[%clk 0:02:29]} 14.
Rxb3 {[%clk 0:02:35.3]} 14... b6 {[%clk 0:02:27.7]} 15. Bd3 {[%clk 0:02:28.4]}
15... Nc6 {[%clk 0:02:27.4]} 16. c4 {[%clk 0:02:23.8]} 16... Na5 {[%clk
0:02:19.4]} 17. Rc3 {[%clk 0:02:21.4]} 17... Nxc4 {[%clk 0:02:03.6]} 18. Bxc4
{[%clk 0:02:19.8]} 18... dxc4 {[%clk 0:02:03.7]} 19. Be3 {[%clk 0:02:05]} 19...
b5 {[%clk 0:01:58.9]} 20. Nd2 {[%clk 0:02:03.6]} 20... Bc6 {[%clk 0:01:52.9]}
21. f3 {[%clk 0:02:01.1]} 21... Be7 {[%clk 0:01:48.8]} 22. Ne4 {[%clk
0:02:01.3]} 22... O-O {[%clk 0:01:44.4]} 23. Rd1 {[%clk 0:01:53.6]} 23... Bd5
{[%clk 0:01:42.8]} 24. Rb1 {[%clk 0:01:49.3]} 24... Rfb8 {[%clk 0:01:40.1]} 25.
Nc5 {[%clk 0:01:27.1]} 25... a5 {[%clk 0:01:34.4]} 26. Nd7 {[%clk 0:01:05.2]}
26... Rb7 {[%clk 0:01:33.7]} 27. Nc5 {[%clk 0:01:05.1]} 27... Bxc5 {[%clk
0:01:26.6]} 28. dxc5 {[%clk 0:01:04.9]} 28... b4 {[%clk 0:01:26.5]} 29. axb4
{[%clk 0:01:02.9]} 29... axb4 {[%clk 0:01:27.4]} 30. Rcc1 {[%clk 0:00:52.9]}
30... Rab8 {[%clk 0:01:08.1]} 31. c6 {[%clk 0:00:43.5]} 31... Rb5 {[%clk
0:00:58.6]} 32. c7 {[%clk 0:00:41.1]} 32... Rc8 {[%clk 0:00:57.7]} 33. Bd2
{[%clk 0:00:36.2]} 33... b3 {[%clk 0:00:55.8]} 34. Bc3 {[%clk 0:00:18.4]} 34...
Rxc7 {[%clk 0:00:55.6]} 35. Rb2 {[%clk 0:00:17.1]} 35... Ra7 {[%clk 0:00:53.6]}
36. Rcb1 {[%clk 0:00:16]} 36... Ra6 {[%clk 0:00:49.2]} 37. Kf2 {[%clk
0:00:15.7]} 37... Rb8 {[%clk 0:00:42.8]} 38. Ke3 {[%clk 0:00:15.3]} 38... Rba8
{[%clk 0:00:42.9]} 39. Kd2 {[%clk 0:00:13.8]} 39... Kf8 {[%clk 0:00:39.9]} 40.
Ke3 {[%clk 0:00:13]} 40... Ke7 {[%clk 0:00:39.6]} 41. Kd4 {[%clk 0:00:11.6]}
41... Kd7 {[%clk 0:00:39.1]} 42. Kc5 {[%clk 0:00:07.7]} 42... Kc7 {[%clk
0:00:35]} 43. Kd4 {[%clk 0:00:06.4]} 43... Kc6 {[%clk 0:00:34.9]} 44. Ke3 {[%clk
0:00:06]} 44... Kc5 {[%clk 0:00:33.5]} 45. g3 {[%clk 0:00:05.5]} 45... Kb5
{[%clk 0:00:28.7]} 46. f4 {[%clk 0:00:04.4]} 46... Ra2 {[%clk 0:00:25.4]} 47. h4
{[%clk 0:00:04.4]} 47... h5 {[%clk 0:00:24.7]} 48. Kd4 {[%clk 0:00:03.4]} 48...
g6 {[%clk 0:00:24.1]} 49. Ke3 {[%clk 0:00:02.2]} 49... Rxb2 {[%clk 0:00:23.5]}
50. Rxb2 {[%clk 0:00:01.4]} 50... Ra2 {[%clk 0:00:23.1]} 0-1

[Event "*** Titled Tuesday Blitz"]
[Site "Chess.com"]
[Date "2021.04.06"]
[Round "10"]
[White "frenchpin"]
[Black "TST2014"]
[Result "0-1"]
[WhiteElo "2505"]
[BlackElo "2665"]
[TimeControl "180+1"]
[EndTime "11:56:45 PDT"]
[Termination "TST2014 won on time"]

1. e4 {[%clk 0:03:00.9]} 1... c5 {[%clk 0:02:58.3]} 2. Nf3 {[%clk 0:03:00.5]}
2... d6 {[%clk 0:02:58.2]} 3. d4 {[%clk 0:03:00.7]} 3... cxd4 {[%clk 0:02:58.4]}
4. Nxd4 {[%clk 0:03:01.6]} 4... Nf6 {[%clk 0:02:58.8]} 5. f3 {[%clk 0:03:01.5]}
5... e5 {[%clk 0:02:57.5]} 6. Bb5+ {[%clk 0:03:01.6]} 6... Nbd7 {[%clk
0:02:54.4]} 7. Nf5 {[%clk 0:03:01]} 7... a6 {[%clk 0:02:50.8]} 8. Ba4 {[%clk
0:03:01]} 8... b5 {[%clk 0:02:43.4]} 9. Bb3 {[%clk 0:03:01.1]} 9... Nb6 {[%clk
0:02:41.1]} 10. Ne3 {[%clk 0:02:56.1]} 10... Be6 {[%clk 0:02:32.3]} 11. Nc3
{[%clk 0:02:55.4]} 11... Rc8 {[%clk 0:02:23.8]} 12. O-O {[%clk 0:02:54.2]} 12...
Be7 {[%clk 0:02:23.5]} 13. Rf2 {[%clk 0:02:48.1]} 13... O-O {[%clk 0:02:16.8]}
14. Ncd5 {[%clk 0:02:46.5]} 14... Nfxd5 {[%clk 0:02:12.3]} 15. Nxd5 {[%clk
0:02:44.1]} 15... Nxd5 {[%clk 0:01:59.7]} 16. Bxd5 {[%clk 0:02:42.8]} 16... Qb6
{[%clk 0:01:56.9]} 17. c3 {[%clk 0:02:37]} 17... Bh4 {[%clk 0:01:53.9]} 18. g3
{[%clk 0:02:35.1]} 18... Bd8 {[%clk 0:01:53.2]} 19. Kg2 {[%clk 0:02:24.1]} 19...
Bh3+ {[%clk 0:01:51.2]} 20. Kg1 {[%clk 0:02:21.7]} 20... Qa7 {[%clk 0:01:50.1]}
21. g4 {[%clk 0:01:57.8]} 21... Bb6 {[%clk 0:01:45.2]} 22. Qe2 {[%clk
0:01:57.5]} 22... h5 {[%clk 0:01:14.4]} 23. gxh5 {[%clk 0:01:55.7]} 23... Kh7
{[%clk 0:01:11.5]} 24. Bd2 {[%clk 0:01:45.9]} 24... f5 {[%clk 0:01:11.3]} 25.
Rd1 {[%clk 0:01:31.3]} 25... Kh8 {[%clk 0:00:45.6]} 26. Be1 {[%clk 0:01:00.7]}
26... Qe7 {[%clk 0:00:39.5]} 27. Kh1 {[%clk 0:00:59]} 27... Bxf2 {[%clk
0:00:34.4]} 28. Bxf2 {[%clk 0:00:59.9]} 28... Qg5 {[%clk 0:00:22.4]} 29. Be3
{[%clk 0:00:47.2]} 29... Qxh5 {[%clk 0:00:20.8]} 30. Be6 {[%clk 0:00:45.4]}
30... Rce8 {[%clk 0:00:19.4]} 31. Rxd6 {[%clk 0:00:44.9]} 31... fxe4 {[%clk
0:00:18.2]} 32. Bg4 {[%clk 0:00:14.1]} 32... Bxg4 {[%clk 0:00:15]} 33. fxg4
{[%clk 0:00:15]} 33... Qh3 {[%clk 0:00:14.9]} 34. Bf2 {[%clk 0:00:06.5]} 34...
Qf3+ {[%clk 0:00:13.5]} 35. Qxf3 {[%clk 0:00:06]} 35... Rxf3 {[%clk 0:00:14.4]}
36. Kg2 {[%clk 0:00:05.8]} 36... Ref8 {[%clk 0:00:14.7]} 37. Bg3 {[%clk
0:00:05.9]} 37... e3 {[%clk 0:00:15]} 38. Re6 {[%clk 0:00:05.9]} 38... Rf2+
{[%clk 0:00:11.3]} 39. Kh3 {[%clk 0:00:04.6]} 39... Rxb2 {[%clk 0:00:10.9]} 40.
Bxe5 {[%clk 0:00:02.4]} 40... Rxa2 {[%clk 0:00:10.3]} 41. Re7 {[%clk 0:00:02.3]}
41... Rg8 {[%clk 0:00:09.9]} 42. Bd4 {[%clk 0:00:01.9]} 42... e2 {[%clk
0:00:10.1]} 43. Re6 {[%clk 0:00:02.3]} 43... Kh7 {[%clk 0:00:10.3]} 44. Re7
{[%clk 0:00:02.4]} 44... Kg6 {[%clk 0:00:09]} 45. Re6+ {[%clk 0:00:01.4]} 45...
Kf7 {[%clk 0:00:09.4]} 0-1

[Event "*** Titled Tuesday Blitz"]
[Site "Chess.com"]
[Date "2021.04.06"]
[Round "10"]
[White "FMalexhdez"]
[Black "Ladislav1969"]
[Result "0-1"]
[WhiteElo "2193"]
[BlackElo "2346"]
[TimeControl "180+1"]
[EndTime "11:56:49 PDT"]
[Termination "Ladislav1969 won on time"]

1. e4 {[%clk 0:03:00.5]} 1... c5 {[%clk 0:02:59.6]} 2. Nf3 {[%clk 0:03:00]} 2...
e6 {[%clk 0:03:00.5]} 3. d4 {[%clk 0:02:58.8]} 3... cxd4 {[%clk 0:03:01.4]} 4.
Nxd4 {[%clk 0:02:59]} 4... a6 {[%clk 0:03:02.1]} 5. Nc3 {[%clk 0:02:58]} 5... b5
{[%clk 0:03:02.3]} 6. a3 {[%clk 0:02:55.7]} 6... Bb7 {[%clk 0:03:02.2]} 7. g3
{[%clk 0:02:55.5]} 7... d6 {[%clk 0:02:50.3]} 8. Bg2 {[%clk 0:02:55.7]} 8... Nd7
{[%clk 0:02:50.4]} 9. O-O {[%clk 0:02:55.6]} 9... Be7 {[%clk 0:02:50.5]} 10.
Nde2 {[%clk 0:02:49.7]} 10... Qc7 {[%clk 0:02:48.1]} 11. Be3 {[%clk 0:02:49.6]}
11... Ngf6 {[%clk 0:02:47.3]} 12. h3 {[%clk 0:02:47.9]} 12... Ne5 {[%clk
0:02:43.5]} 13. b3 {[%clk 0:02:40]} 13... O-O {[%clk 0:02:25.9]} 14. f4 {[%clk
0:02:39.9]} 14... Ned7 {[%clk 0:02:23.8]} 15. g4 {[%clk 0:02:37.5]} 15... Nc5
{[%clk 0:02:06.1]} 16. Ng3 {[%clk 0:01:53.8]} 16... Nxb3 {[%clk 0:02:05.6]} 17.
cxb3 {[%clk 0:01:53.2]} 17... Qxc3 {[%clk 0:02:05.1]} 18. Bf2 {[%clk 0:01:32.3]}
18... Rac8 {[%clk 0:01:57]} 19. g5 {[%clk 0:01:31.6]} 19... Nd7 {[%clk 0:01:38]}
20. Qh5 {[%clk 0:01:11.6]} 20... g6 {[%clk 0:01:18.4]} 21. Qh6 {[%clk
0:01:10.6]} 21... Qg7 {[%clk 0:01:15.7]} 22. Rac1 {[%clk 0:00:52.6]} 22... f6
{[%clk 0:01:01.4]} 23. e5 {[%clk 0:00:44.3]} 23... fxg5 {[%clk 0:00:58.8]} 24.
Qxg7+ {[%clk 0:00:42.3]} 24... Kxg7 {[%clk 0:00:58.3]} 25. Bxb7 {[%clk
0:00:42.1]} 25... Rxc1 {[%clk 0:00:28.2]} 26. Rxc1 {[%clk 0:00:41.2]} 26... gxf4
{[%clk 0:00:29.1]} 27. Ne4 {[%clk 0:00:40.1]} 27... Nxe5 {[%clk 0:00:25.9]} 28.
Rc7 {[%clk 0:00:36.1]} 28... Rf7 {[%clk 0:00:26]} 29. Bc8 {[%clk 0:00:28.8]}
29... Bd8 {[%clk 0:00:12.1]} 30. Rxf7+ {[%clk 0:00:25.9]} 30... Kxf7 {[%clk
0:00:12.3]} 31. Bxa6 {[%clk 0:00:25.9]} 31... d5 {[%clk 0:00:11.3]} 32. Nd6+
{[%clk 0:00:23.3]} 32... Ke7 {[%clk 0:00:10.7]} 33. Nxb5 {[%clk 0:00:22.4]}
33... Nd3 {[%clk 0:00:10.8]} 34. Nc3 {[%clk 0:00:16.2]} 34... Nxf2 {[%clk
0:00:10.1]} 35. Kxf2 {[%clk 0:00:16]} 35... Kd6 {[%clk 0:00:10.4]} 36. b4 {[%clk
0:00:13.8]} 36... e5 {[%clk 0:00:10.3]} 37. a4 {[%clk 0:00:12.9]} 37... Bb6+
{[%clk 0:00:08.8]} 38. Ke2 {[%clk 0:00:12.4]} 38... e4 {[%clk 0:00:08.6]} 39. a5
{[%clk 0:00:12.3]} 39... Bg1 {[%clk 0:00:08]} 40. b5 {[%clk 0:00:11.5]} 40...
Kc5 {[%clk 0:00:07.6]} 41. b6 {[%clk 0:00:11.1]} 41... f3+ {[%clk 0:00:03.6]}
42. Kf1 {[%clk 0:00:08.2]} 42... Bh2 {[%clk 0:00:03.8]} 43. b7 {[%clk
0:00:07.1]} 43... Kd4 {[%clk 0:00:03.9]} 44. Nd1 {[%clk 0:00:02.2]} 44... e3
{[%clk 0:00:03.6]} 45. Bb5 {[%clk 0:00:01.9]} 45... Kc5 {[%clk 0:00:02.9]} 0-1

[Event "*** Titled Tuesday Blitz"]
[Site "Chess.com"]
[Date "2021.04.06"]
[Round "10"]
[White "PawnEatingZombie"]
[Black "Grineva_Marianna"]
[Result "1/2-1/2"]
[WhiteElo "2192"]
[BlackElo "2245"]
[TimeControl "180+1"]
[EndTime "11:56:50 PDT"]
[Termination "Game drawn - insufficient material"]

1. d4 {[%clk 0:03:00.9]} 1... d6 {[%clk 0:03:00.1]} 2. e4 {[%clk 0:03:00.2]}
2... Nd7 {[%clk 0:03:00.7]} 3. Nc3 {[%clk 0:02:58.9]} 3... h6 {[%clk 0:02:59.6]}
4. g3 {[%clk 0:02:57.9]} 4... g5 {[%clk 0:03:00.1]} 5. Bg2 {[%clk 0:02:57.8]}
5... Bg7 {[%clk 0:03:00.5]} 6. Nge2 {[%clk 0:02:57.3]} 6... c5 {[%clk
0:03:01.1]} 7. Be3 {[%clk 0:02:56]} 7... cxd4 {[%clk 0:02:53.7]} 8. Nxd4 {[%clk
0:02:54.3]} 8... Ne5 {[%clk 0:02:47.4]} 9. h3 {[%clk 0:02:39.4]} 9... Nc4 {[%clk
0:02:47.6]} 10. Bc1 {[%clk 0:02:36.2]} 10... Qb6 {[%clk 0:02:45.9]} 11. Nb3
{[%clk 0:02:28.3]} 11... Bxc3+ {[%clk 0:02:21.8]} 12. bxc3 {[%clk 0:02:27.1]}
12... Nf6 {[%clk 0:02:15.9]} 13. O-O {[%clk 0:02:20.5]} 13... Bd7 {[%clk
0:02:04.4]} 14. Qd4 {[%clk 0:02:10.1]} 14... Rc8 {[%clk 0:01:59.7]} 15. Kh2
{[%clk 0:01:57.1]} 15... Qxd4 {[%clk 0:01:34.6]} 16. cxd4 {[%clk 0:01:56.8]}
16... Nb6 {[%clk 0:01:32.7]} 17. Na5 {[%clk 0:01:40.5]} 17... Rxc2 {[%clk
0:01:26.7]} 18. Nxb7 {[%clk 0:01:30.6]} 18... Bb5 {[%clk 0:01:26.4]} 19. Re1
{[%clk 0:01:14.7]} 19... Rxf2 {[%clk 0:01:25.6]} 20. Na5 {[%clk 0:00:58.4]}
20... Kd7 {[%clk 0:01:14.7]} 21. e5 {[%clk 0:00:57.9]} 21... Nfd5 {[%clk
0:01:10.3]} 22. Kg1 {[%clk 0:00:48.2]} 22... Rc2 {[%clk 0:01:06]} 23. Nb3 {[%clk
0:00:47]} 23... Rhc8 {[%clk 0:01:00]} 24. Ba3 {[%clk 0:00:46.8]} 24... Re2
{[%clk 0:00:51.7]} 25. Bf3 {[%clk 0:00:43.2]} 25... Rxe1+ {[%clk 0:00:51.1]} 26.
Rxe1 {[%clk 0:00:42.9]} 26... Rc2 {[%clk 0:00:49.4]} 27. Bg4+ {[%clk 0:00:36.2]}
27... Kc7 {[%clk 0:00:41.6]} 28. exd6+ {[%clk 0:00:35.2]} 28... exd6 {[%clk
0:00:42.5]} 29. Rc1 {[%clk 0:00:20.4]} 29... Rxc1+ {[%clk 0:00:39.8]} 30. Bxc1
{[%clk 0:00:21]} 30... Na4 {[%clk 0:00:34.3]} 31. h4 {[%clk 0:00:20.7]} 31...
gxh4 {[%clk 0:00:32.8]} 32. gxh4 {[%clk 0:00:20.9]} 32... Nac3 {[%clk
0:00:30.6]} 33. Bxh6 {[%clk 0:00:20.6]} 33... Nxa2 {[%clk 0:00:30.8]} 34. Bg5
{[%clk 0:00:17.5]} 34... Nab4 {[%clk 0:00:27.9]} 35. h5 {[%clk 0:00:17.1]} 35...
Bd3 {[%clk 0:00:24.6]} 36. h6 {[%clk 0:00:15.3]} 36... Kb6 {[%clk 0:00:22.8]}
37. Bh5 {[%clk 0:00:13]} 37... f6 {[%clk 0:00:18.4]} 38. Bc1 {[%clk 0:00:09.2]}
38... Bh7 {[%clk 0:00:17.6]} 39. Bf7 {[%clk 0:00:08.1]} 39... a5 {[%clk
0:00:17.1]} 40. Kf2 {[%clk 0:00:07.8]} 40... a4 {[%clk 0:00:16.7]} 41. Nd2
{[%clk 0:00:06]} 41... Kb5 {[%clk 0:00:17]} 42. Ne4 {[%clk 0:00:05.5]} 42...
Nd3+ {[%clk 0:00:17.2]} 43. Kf3 {[%clk 0:00:03.1]} 43... Nxc1 {[%clk 0:00:17]}
44. Nxd6+ {[%clk 0:00:03.6]} 44... Kb4 {[%clk 0:00:16.3]} 45. Bxd5 {[%clk
0:00:03.2]} 45... a3 {[%clk 0:00:16.8]} 46. Ne8 {[%clk 0:00:02.4]} 46... a2
{[%clk 0:00:16.8]} 47. Bxa2 {[%clk 0:00:01.9]} 47... Nxa2 {[%clk 0:00:17.3]} 48.
Nxf6 {[%clk 0:00:02.4]} 48... Bg6 {[%clk 0:00:16.7]} 49. h7 {[%clk 0:00:02.9]}
49... Nc3 {[%clk 0:00:16.7]} 50. Kf4 {[%clk 0:00:01.8]} 50... Bxh7 {[%clk
0:00:16.2]} 51. Nxh7 {[%clk 0:00:02.7]} 51... Kc4 {[%clk 0:00:16.2]} 52. Ke5
{[%clk 0:00:03.1]} 52... Nd5 {[%clk 0:00:15.1]} 53. Nf6 {[%clk 0:00:04]} 53...
Nxf6 {[%clk 0:00:14.6]} 54. Kxf6 {[%clk 0:00:04.9]} 54... Kxd4 {[%clk 0:00:15]}
1/2-1/2

[Event "*** Titled Tuesday Blitz"]
[Site "Chess.com"]
[Date "2021.04.06"]
[Round "10"]
[White "GameOverBro"]
[Black "Godzillator"]
[Result "1/2-1/2"]
[WhiteElo "2523"]
[BlackElo "2331"]
[TimeControl "180+1"]
[EndTime "11:56:51 PDT"]
[Termination "Game drawn by repetition"]

1. e4 {[%clk 0:03:00.9]} 1... c6 {[%clk 0:02:59.9]} 2. Nc3 {[%clk 0:03:00.4]}
2... d5 {[%clk 0:03:00.8]} 3. Nf3 {[%clk 0:03:00.1]} 3... Bg4 {[%clk 0:03:00.6]}
4. h3 {[%clk 0:03:00]} 4... Bxf3 {[%clk 0:03:01.3]} 5. Qxf3 {[%clk 0:03:00.7]}
5... Nf6 {[%clk 0:03:01.9]} 6. d3 {[%clk 0:02:58.7]} 6... e6 {[%clk 0:03:02.1]}
7. a3 {[%clk 0:02:59.2]} 7... Be7 {[%clk 0:02:55.1]} 8. g4 {[%clk 0:02:58.3]}
8... d4 {[%clk 0:02:51.4]} 9. Ne2 {[%clk 0:02:56.8]} 9... c5 {[%clk 0:02:51.7]}
10. g5 {[%clk 0:02:54.4]} 10... Nfd7 {[%clk 0:02:51.4]} 11. h4 {[%clk
0:02:54.7]} 11... Nc6 {[%clk 0:02:51.5]} 12. Bh3 {[%clk 0:02:53.1]} 12... Qc7
{[%clk 0:02:47]} 13. h5 {[%clk 0:02:49]} 13... Rf8 {[%clk 0:02:34.8]} 14. Qg2
{[%clk 0:02:33.3]} 14... O-O-O {[%clk 0:02:32.1]} 15. Bd2 {[%clk 0:02:21.2]}
15... Kb8 {[%clk 0:02:31.7]} 16. f4 {[%clk 0:02:20.5]} 16... e5 {[%clk
0:02:29.3]} 17. O-O {[%clk 0:02:07.3]} 17... f6 {[%clk 0:02:28.9]} 18. g6 {[%clk
0:02:02.9]} 18... hxg6 {[%clk 0:02:28.1]} 19. hxg6 {[%clk 0:02:01.8]} 19... Rh8
{[%clk 0:02:24.3]} 20. Bxd7 {[%clk 0:01:59.1]} 20... Qxd7 {[%clk 0:02:23.4]} 21.
f5 {[%clk 0:01:59.4]} 21... Rh4 {[%clk 0:02:16.3]} 22. Kf2 {[%clk 0:01:58.6]}
22... Rdh8 {[%clk 0:02:15.6]} 23. Rh1 {[%clk 0:01:58.5]} 23... c4 {[%clk
0:02:15.1]} 24. Rxh4 {[%clk 0:01:53.1]} 24... Rxh4 {[%clk 0:02:13.8]} 25. Rh1
{[%clk 0:01:53.6]} 25... Rxh1 {[%clk 0:02:11.3]} 26. Qxh1 {[%clk 0:01:54.5]}
26... cxd3 {[%clk 0:02:11.6]} 27. cxd3 {[%clk 0:01:54.7]} 27... Bf8 {[%clk
0:02:00.3]} 28. Qh8 {[%clk 0:01:54]} 28... Qe7 {[%clk 0:01:57.7]} 29. Ng3 {[%clk
0:01:47.8]} 29... a5 {[%clk 0:01:49.5]} 30. Nh5 {[%clk 0:01:47.3]} 30... b6
{[%clk 0:01:48.2]} 31. Bh6 {[%clk 0:01:31.2]} 31... Qc5 {[%clk 0:01:39.7]} 32.
Kg3 {[%clk 0:01:21]} 32... Kb7 {[%clk 0:01:22.8]} 33. Bxg7 {[%clk 0:01:17.4]}
33... Qc2 {[%clk 0:01:21]} 34. Qxf8 {[%clk 0:00:49.2]} 34... Qxd3+ {[%clk
0:01:20.6]} 35. Kh4 {[%clk 0:00:46.9]} 35... Qxe4+ {[%clk 0:01:19.8]} 36. Kg3
{[%clk 0:00:43.9]} 36... Qe3+ {[%clk 0:01:12.8]} 37. Kh4 {[%clk 0:00:36.8]}
37... Qg5+ {[%clk 0:01:11.7]} 38. Kh3 {[%clk 0:00:34.9]} 38... Qxh5+ {[%clk
0:01:11.9]} 39. Kg3 {[%clk 0:00:35.5]} 39... Qg5+ {[%clk 0:01:12.2]} 40. Kh2
{[%clk 0:00:36.1]} 40... d3 {[%clk 0:00:43.9]} 41. Qxf6 {[%clk 0:00:35.5]} 41...
Qxf6 {[%clk 0:00:40.3]} 42. Bxf6 {[%clk 0:00:36.4]} 42... d2 {[%clk 0:00:39.6]}
43. g7 {[%clk 0:00:36.8]} 43... d1=Q {[%clk 0:00:39.8]} 44. g8=Q {[%clk
0:00:37.4]} 44... Qe2+ {[%clk 0:00:38.3]} 45. Qg2 {[%clk 0:00:20.3]} 45... Qxg2+
{[%clk 0:00:36.5]} 46. Kxg2 {[%clk 0:00:20.4]} 46... Nd4 {[%clk 0:00:33.5]} 47.
Bxe5 {[%clk 0:00:18.3]} 47... Nxf5 {[%clk 0:00:33.7]} 48. Kf3 {[%clk 0:00:18.5]}
48... Kc6 {[%clk 0:00:33.2]} 49. Ke4 {[%clk 0:00:18.7]} 49... Ne7 {[%clk
0:00:31.3]} 50. Kd4 {[%clk 0:00:16.7]} 50... Nd5 {[%clk 0:00:30.6]} 51. Bg7
{[%clk 0:00:16.5]} 51... Nf4 {[%clk 0:00:29.8]} 52. Kc4 {[%clk 0:00:16.5]} 52...
b5+ {[%clk 0:00:28.9]} 53. Kc3 {[%clk 0:00:15.3]} 53... Nd5+ {[%clk 0:00:25.4]}
54. Kd4 {[%clk 0:00:14.5]} 54... a4 {[%clk 0:00:25.2]} 55. Bf8 {[%clk
0:00:13.5]} 55... Nb6 {[%clk 0:00:24.6]} 56. Bb4 {[%clk 0:00:13.1]} 56... Nc4
{[%clk 0:00:24.4]} 57. Bc3 {[%clk 0:00:13.6]} 57... Kd6 {[%clk 0:00:24.1]} 58.
Ke4 {[%clk 0:00:12.2]} 58... Kc5 {[%clk 0:00:23.9]} 59. Bb4+ {[%clk 0:00:12.6]}
59... Kc6 {[%clk 0:00:24.1]} 60. Bc3 {[%clk 0:00:13.5]} 60... Kc5 {[%clk
0:00:23.8]} 61. Bb4+ {[%clk 0:00:13.9]} 61... Kc6 {[%clk 0:00:23]} 62. Bc3
{[%clk 0:00:14.5]} 62... Kc5 {[%clk 0:00:23]} 1/2-1/2